bitfinex-derivatives/quotes_SOLF0:USTF0_20250923
["timestamp","ask_amount","ask_price","bid_price","bid_amount"]
[1758655562220,11.6151,216.52,216.43,11.08356508]
[1758655562419,7.46,216.52,216.43,11.08356508]
[1758655562618,7.46,216.52,216.43,7.21]
[1758655563624,2.58906906,216.57,216.43,7.21]
[1758655563923,79.19498274,216.56,216.45,7.21]
[1758655564116,1.15498274,216.55,216.45,7.21]
[1758655564322,8.61494281,216.54,216.45,7.21]
[1758655564521,1.15500822,216.53,216.45,7.21]
[1758655564725,7.46,216.54,216.45,7.21]
[1758655564926,1.15500854,216.53,216.45,7.21]
[1758655565121,4.1552,216.51,216.45,7.21]
[1758655566523,4.1555,216.49,216.41,11.08356508]
[1758655566724,4.1555,216.49,216.41,7.21]
[1758655567023,36.08,216.54,216.42,7.21]
[1758655567228,1.15506159,216.53,216.42,7.21]
[1758655567525,1.15506159,216.53,216.41,3.87356508]
[1758655567526,1.15506159,216.52,216.45,4.1561]
[1758655567726,4.1548,216.53,216.46,7.21]
[1758655567926,1.15506159,216.52,216.46,7.21]
[1758655568231,4.1548,216.53,216.46,7.21]
[1758655568526,1.15506159,216.52,216.46,11.3659]
[1758655568724,4.1548,216.53,216.46,11.3659]
[1758655569024,1.15506173,216.52,216.46,11.3659]
[1758655569225,4.1548,216.53,216.46,11.3659]
[1758655569426,7.46,216.54,216.46,7.21]
[1758655570422,11.6136,216.59,216.5,7.21]
[1758655570615,1.15484804,216.58,216.5,7.21]
[1758655570915,1.15484804,216.57,216.5,7.21]
[1758655571115,11.6136,216.59,216.52,4.1548]
[1758655571323,1.1548306,216.58,216.49,7.21]
[1758655571524,1.1548306,216.57,216.49,7.21]
[1758655571715,7.46,216.59,216.49,7.21]
[1758655571913,1.15479926,216.58,216.49,7.21]
[1758655572114,8.20278492,216.63,216.49,7.37]
[1758655572318,1.15478228,216.62,216.49,7.37]
[1758655572519,1.15478228,216.61,216.52,9.95906906]
[1758655572727,8.20278492,216.63,216.56,7.37]
[1758655572728,7.68,216.63,216.56,7.37]
[1758655573620,11.833,216.63,216.56,7.37]
[1758655574225,4.1532,216.61,216.53,4.1547]
[1758655574432,7.68,216.6,216.51,7.37]
[1758655575624,4.1531,216.62,216.52,7.37]
[1758655575823,4.1531,216.62,216.53,7.37]
[1758655578021,4.1531,216.62,216.54,4.1544]
[1758655578625,5.8081515,216.65,216.56,7.37]
[1758655578829,4.1525,216.65,216.56,7.37]
[1758655579934,4.1528,216.64,216.56,7.37]
[1758655580334,4.1528,216.64,216.56,9.0256515]
[1758655580730,7.68,216.65,216.56,9.0256515]
[1758655580930,7.68,216.63,216.53,1.6556515]
[1758655581432,1.6556515,216.64,216.53,1.6556515]
[1758655581433,4.1535,216.6,216.53,1.6556515]
[1758655581630,4.1535,216.6,216.52,7.37]
[1758655581631,7.68,216.6,216.52,7.37]
[1758655582837,4.1538,216.58,216.52,7.37]
[1758655584137,7.68,216.6,216.52,7.37]
[1758655584935,1.6556515,216.64,216.54,1.6556515]
[1758655585136,7.59,216.65,216.55,7.48]
[1758655585942,4.1527,216.64,216.57,1.6556515]
[1758655587040,4.1527,216.64,216.58,4.1537]
[1758655588045,7.59,216.65,216.58,4.1537]
[1758655588245,7.59,216.65,216.59,4.1534]
[1758655590248,7.59,216.65,216.6,4.1533]
[1758655590444,419.48058459,216.66,216.6,4.1533]
[1758655591749,349.18,216.66,216.62,7.48]
[1758655591950,1.6556515,216.7,216.61,1.6556515]
[1758655592139,114.92,216.69,216.62,7.48]
[1758655592740,114.92,216.69,216.63,4.1527]
[1758655593746,114.92,216.69,216.62,7.48]
[1758655594748,114.92,216.69,216.65,4.1523]
[1758655594948,114.92,216.69,216.65,11.6323]
[1758655595150,114.92,216.69,216.66,7.48]
[1758655595545,4.1507,216.74,216.68,7.48]
[1758655595747,7.59,216.75,216.68,7.48]
[1758655596147,11.7407,216.75,216.68,11.6318]
[1758655596655,7.59,216.75,216.68,11.6318]
[1758655596949,7.59,216.75,216.61,64.6046]
[1758655597147,7.59,216.75,216.67,1.6556515]
[1758655597343,4.1513,216.71,216.67,1.6556515]
[1758655597546,4.1513,216.71,216.65,7.48]
[1758655599056,11.7417,216.69,216.65,7.48]
[1758655600260,7.59,216.69,216.65,7.48]
[1758655600458,4.1514,216.71,216.64,9.1356515]
[1758655600756,11.7409,216.73,216.65,4.1523]
[1758655600951,114.86,216.75,216.68,7.48]
[1758655601152,7.59,216.74,216.68,7.48]
[1758655601352,7.59,216.74,216.67,1.6556515]
[1758655602754,4.1512,216.72,216.67,1.6556515]
[1758655602959,11.7412,216.72,216.67,9.1356515]
[1758655603552,7.59,216.7,216.64,1.6556515]
[1758655603955,4.152,216.68,216.64,1.6556515]
[1758655604158,11.742,216.68,216.64,1.6556515]
[1758655604353,7.59,216.67,216.64,1.6556515]
[1758655604853,7.59,216.67,216.56,58.5]
[1758655604854,9.2456515,216.7,216.61,1.6556515]
[1758655605660,4.1519,216.68,216.62,7.48]
[1758655606760,4.1519,216.68,216.62,11.6329]
[1758655609663,7.59,216.7,216.63,4.1526]
[1758655609865,7.59,216.7,216.65,7.48]
[1758655610359,11.7416,216.7,216.64,9.1356515]
[1758655610759,7.59,216.7,216.64,7.48]
[1758655610966,7.59,216.68,216.64,7.48]
[1758655611764,4.1518,216.69,216.64,7.48]
[1758655612064,11.7418,216.69,216.61,5.8088515]
[1758655612266,4.1519,216.68,216.61,1.6556515]
[1758655612760,7.59,216.65,216.6,7.48]
[1758655612966,7.59,216.65,216.59,11.6335]
[1758655613462,4.1523,216.66,216.59,11.6335]
[1758655614765,4.1525,216.65,216.59,7.48]
[1758655614962,8.6556515,216.68,216.59,7.48]
[1758655615964,4.1525,216.65,216.59,7.48]
[1758655617464,7.0,216.63,216.59,7.48]
[1758655617766,64.5825,216.69,216.56,8.7456515]
[1758655617767,7.0,216.64,216.56,8.7456515]
[1758655617961,1.6556515,216.58,216.5,7.09]
[1758655618168,7.0,216.57,216.5,7.09]
[1758655618764,7.0,216.57,216.46,3.87356508]
[1758655619868,4.1541,216.56,216.46,8.02946508]
[1758655621166,112.78351124,216.59,216.46,3.87356508]
[1758655621167,7.0,216.54,216.46,3.87356508]
[1758655621369,7.0,216.54,216.43,3.87356508]
[1758655621566,7.0,216.51,216.43,3.87356508]
[1758655621964,7.0,216.51,216.42,10.96356508]
[1758655622264,11.1552,216.51,216.42,7.09]
[1758655622660,7.0,216.51,216.4,3.87356508]
[1758655623060,4.1555,216.5,216.4,3.87356508]
[1758655623264,4.1555,216.5,216.39,1.6556515]
[1758655623265,7.0,216.48,216.39,5.52921658]
[1758655623465,7.0,216.48,216.39,1.6556515]
[1758655623767,1.6556515,216.46,216.38,7.09]
[1758655624072,7.0,216.45,216.38,7.09]
[1758655624268,7.0,216.45,216.34,3.87356508]
[1758655624470,7.0,216.42,216.33,10.96356508]
[1758655624671,7.0,216.42,216.33,7.09]
[1758655624869,11.1569,216.42,216.33,7.09]
[1758655625374,8.6556515,216.42,216.33,7.09]
[1758655626274,1.6556515,216.39,216.29,7.09]
[1758655626471,8.6556515,216.39,216.29,7.09]
[1758655626871,12.8130515,216.39,216.29,7.09]
[1758655627271,7.0,216.39,216.29,7.09]
[1758655627470,1.6556515,216.38,216.29,7.09]
[1758655628174,7.0,216.39,216.29,7.09]
[1758655628369,1.6556515,216.38,216.29,7.09]
[1758655629670,7.0,216.37,216.29,7.09]
[1758655631070,7.0,216.37,216.29,8.7456515]
[1758655631271,1.6556515,216.4,216.29,8.7456515]
[1758655631774,7.0,216.41,216.32,8.7456515]
[1758655632171,8.7656515,216.45,216.35,5.8137515]
[1758655632376,123.6256515,216.45,216.36,7.22]
[1758655632970,127.7819515,216.45,216.36,7.22]
[1758655634376,127.7819515,216.45,216.29,7.22]
[1758655634377,8.7656515,216.41,216.29,7.22]
[1758655634676,1.6556515,216.38,216.29,8.8756515]
[1758655635172,7.11,216.37,216.29,8.8756515]
[1758655636278,11.2679,216.37,216.29,7.22]
[1758655637973,4.1583,216.35,216.29,7.22]
[1758655639782,7.11,216.33,216.29,7.22]
[1758655641077,7.11,216.33,216.25,4.1599]
[1758655641078,4.158,216.36,216.26,7.22]
[1758655641277,7.11,216.37,216.26,7.22]
[1758655642187,7.11,216.37,216.28,7.22]
[1758655643887,11.6485,216.34,216.28,7.22]
[1758655644791,7.49,216.34,216.28,7.22]
[1758655646988,11.6476,216.38,216.28,7.22]
[1758655647188,7.49,216.38,216.28,7.22]
[1758655648792,4.1579,216.37,216.28,7.22]
[1758655649295,7.49,216.38,216.28,7.22]
[1758655650590,4.1578,216.37,216.29,7.07]
[1758655650893,7.49,216.38,216.29,7.07]
[1758655651589,4.1582,216.35,216.29,7.07]
[1758655651794,7.49,216.35,216.24,7.07]
[1758655652296,7.49,216.32,216.24,7.07]
[1758655652493,7.49,216.37,216.24,7.07]
[1758655653199,4.1589,216.31,216.24,7.07]
[1758655654399,11.6489,216.31,216.24,7.07]
[1758655655097,4.1592,216.3,216.24,7.07]
[1758655655290,7.49,216.27,216.16,7.07]
[1758655655491,11.6498,216.27,216.16,11.2317]
[1758655656393,11.6498,216.27,216.17,11.2315]
[1758655656591,4.1601,216.26,216.17,11.2315]
[1758655657004,7.49,216.27,216.17,7.07]
[1758655657194,50.98,216.29,216.17,7.07]
[1758655657195,7.49,216.25,216.17,7.07]
[1758655658186,7.49,216.24,216.09,7.07]
[1758655658702,7.49,216.24,216.1,7.07]
[1758655659195,21.60336154,216.24,216.1,7.07]
[1758655659693,11.6503,216.24,216.15,7.07]
[1758655660696,11.6503,216.24,216.16,4.1617]
[1758655660697,7.49,216.24,216.16,4.1617]
[1758655660897,7.49,216.24,216.15,7.07]
[1758655661403,7.49,216.29,216.16,2.59396354]
[1758655661605,1.15645051,216.28,216.17,7.07]
[1758655661902,21.22717531,216.29,216.17,7.07]
[1758655662099,4.1598,216.27,216.18,4.1614]
[1758655662800,4.1598,216.27,216.2,4.161]
[1758655663002,4.1598,216.27,216.21,7.07]
[1758655663407,7.49,216.29,216.21,11.2307]
[1758655663408,11.6494,216.29,216.21,11.2307]
[1758655663606,1.15631621,216.28,216.21,7.07]
[1758655663903,1.15637919,216.27,216.21,7.07]
[1758655664097,7.49,216.29,216.21,7.07]
[1758655664298,1.15637919,216.28,216.21,7.07]
[1758655664501,1.15637919,216.27,216.21,7.07]
[1758655665205,7.49,216.29,216.21,7.07]
[1758655665503,1.15637919,216.28,216.21,7.07]
[1758655665802,133.27634607,216.32,216.21,7.07]
[1758655666007,1.15629919,216.31,216.21,7.07]
[1758655666208,1.15629919,216.3,216.21,7.07]
[1758655666407,1.15629919,216.29,216.21,7.07]
[1758655666611,123.03,216.33,216.21,7.07]
[1758655666802,4.1591,216.31,216.23,11.2303]
[1758655667002,1.15628217,216.3,216.23,11.2303]
[1758655667304,1.15628217,216.29,216.23,11.2303]
[1758655667509,4.1591,216.31,216.23,11.2303]
[1758655667809,1.15628217,216.3,216.23,11.2303]
[1758655668004,1.15628217,216.29,216.23,11.2303]
[1758655668308,1.15628203,216.28,216.23,4.1603]
[1758655668502,11.6491,216.31,216.23,11.2303]
[1758655668703,1.15628189,216.3,216.23,7.07]
[1758655668902,1.15628189,216.29,216.23,7.07]
[1758655669105,1.15628189,216.28,216.22,7.07]
[1758655669409,7.49,216.31,216.22,7.07]
[1758655669611,1.15629026,216.3,216.22,7.07]
[1758655669803,5.31579026,216.29,216.22,11.2305]
[1758655670003,1.15629026,216.28,216.22,7.07]
[1758655670202,4.1595,216.29,216.22,7.07]
[1758655670402,1.15629026,216.28,216.23,4.1603]
[1758655670609,11.649,216.31,216.23,4.1603]
[1758655670808,1.15629026,216.3,216.23,4.1603]
[1758655671008,1.15629026,216.29,216.23,4.1603]
[1758655671309,4.1592,216.3,216.24,7.07]
[1758655671509,8.64629029,216.29,216.23,11.2303]
[1758655671702,7.49,216.29,216.23,11.2303]
[1758655674217,126.7988,216.32,216.24,4.1601]
[1758655674420,1.15628974,216.31,216.24,4.1601]
[1758655674719,1.15628974,216.3,216.24,4.1601]
[1758655674916,126.7988,216.32,216.24,4.1601]
[1758655675116,1.15628955,216.31,216.22,7.06]
[1758655675316,468.9385,216.34,216.22,7.06]
[1758655675522,1.15621811,216.33,216.22,7.06]
[1758655675722,1.15621811,216.32,216.22,7.06]
[1758655676020,4.1585,216.34,216.22,7.06]
[1758655676329,7.4,216.35,216.25,7.06]
[1758655676922,11.5583,216.35,216.28,4.1594]
[1758655677116,11.5583,216.35,216.28,11.2194]
[1758655678520,4.1583,216.35,216.28,11.2194]
[1758655680521,7.4,216.36,216.28,7.06]
[1758655680725,7.4,216.36,216.24,7.06]
[1758655680726,7.4,216.34,216.24,7.06]
[1758655681020,7.4,216.32,216.24,7.06]
[1758655681819,4.1591,216.31,216.24,11.2202]
[1758655683822,4.1593,216.3,216.24,7.06]
[1758655685220,11.5593,216.3,216.24,7.06]
[1758655687023,7.4,216.32,216.24,7.06]
[1758655687223,7.4,216.32,216.2,7.06]
[1758655687622,7.4,216.3,216.2,7.06]
[1758655687828,122.38,216.3,216.2,7.06]
[1758655688831,4.1598,216.27,216.2,7.06]
[1758655689130,4.1598,216.27,216.2,11.2209]
[1758655689833,7.4,216.28,216.2,11.2209]
[1758655689834,7.4,216.28,216.21,4.1607]
[1758655691828,4.1598,216.27,216.21,4.1607]
[1758655692035,7.54,216.27,216.2,7.06]
[1758655693739,4.16,216.26,216.2,7.06]
[1758655696638,7.54,216.27,216.2,7.06]
[1758655697034,7.54,216.27,216.21,4.1608]
[1758655697334,4.1592,216.3,216.21,11.3007882]
[1758655697540,4.1592,216.3,216.22,7.45]
[1758655697736,11.6988,216.32,216.25,7.45]
[1758655697936,7.54,216.32,216.25,7.45]
[1758655698136,7.54,216.32,216.25,11.61]
[1758655699243,11.6989,216.32,216.25,11.61]
[1758655699835,11.6989,216.32,216.23,3.8507882]
[1758655699836,4.1584,216.34,216.27,7.45]
[1758655700445,126.6981,216.36,216.27,11.6096]
[1758655700638,11.6981,216.36,216.27,7.45]
[1758655700845,7.54,216.36,216.27,7.45]
[1758655701236,7.54,216.36,216.28,4.1594]
[1758655702846,11.6981,216.36,216.28,4.1594]
[1758655703545,4.1584,216.35,216.27,9.11002779]
[1758655703740,7.26,216.34,216.27,9.11002779]
[1758655704840,7.26,216.34,216.27,13.26952779]
[1758655705537,7.26,216.34,216.28,4.1594]
[1758655705842,8.92002779,216.37,216.27,9.11002779]
[1758655706341,4.158,216.36,216.3,4.1591]
[1758655707441,7.26,216.37,216.3,4.1591]
[1758655707844,7.26,216.37,216.27,1.66002779]
[1758655707845,7.26,216.37,216.32,4.1587]
[1758655708348,7.26,216.37,216.33,7.35]
[1758655708544,21.19185859,216.41,216.34,7.35]
[1758655708740,7.26,216.41,216.34,7.35]
[1758655709046,7.26,216.41,216.34,11.5083]
[1758655709243,7.26,216.41,216.34,7.35]
[1758655709544,7.26,216.41,216.35,4.1581]
[1758655709936,7.26,216.41,216.34,7.35]
[1758655710947,11.4172,216.41,216.34,9.01002779]
[1758655711146,7.26,216.41,216.34,9.01002779]
[1758655712344,7.26,216.41,216.34,13.16822779]
[1758655713451,11.4172,216.41,216.35,4.158]
[1758655715352,11.4172,216.41,216.34,7.35]
[1758655715353,4.1574,216.4,216.34,7.35]
[1758655715552,4.1574,216.4,216.34,9.01002779]
[1758655716252,4.1577,216.38,216.34,7.35]
[1758655716454,11.4177,216.38,216.34,7.35]
[1758655718748,7.26,216.37,216.29,9.01002779]
[1758655720153,1.66002779,216.42,216.32,1.66002779]
[1758655720354,122.18,216.41,216.33,7.35]
[1758655720752,7.26,216.4,216.32,1.66002779]
[1758655721049,7.26,216.38,216.29,9.01002779]
[1758655723353,4.1579,216.37,216.29,9.01002779]
[1758655723757,64.6637,216.42,216.32,1.66002779]
[1758655723758,1.66002779,216.42,216.32,1.66002779]
[1758655723958,122.16,216.41,216.33,7.35]
[1758655724455,4.1574,216.4,216.33,11.5084]
[1758655724853,4.1574,216.4,216.33,7.35]
[1758655725361,7.26,216.41,216.35,7.35]
[1758655725561,4.1569,216.42,216.36,9.01002779]
[1758655726257,4.1569,216.42,216.36,13.16792779]
[1758655726563,11.4169,216.42,216.36,9.01002779]
[1758655727362,11.4171,216.41,216.36,9.01002779]
[1758655729371,7.26,216.4,216.36,9.01002779]
[1758655730462,7.26,216.38,216.36,1.66002779]
[1758655732364,4.1574,216.39,216.36,1.66002779]
[1758655732570,4.1571,216.41,216.36,1.66002779]
[1758655732868,7.26,216.41,216.36,1.66002779]
[1758655733456,7.26,216.41,216.37,11.6177]
[1758655733960,7.26,216.41,216.37,7.46]
[1758655735365,11.3673,216.4,216.36,1.66002779]
[1758655735571,7.21,216.39,216.36,1.66002779]
[1758655735771,4.1573,216.4,216.36,1.66002779]
[1758655735975,4.1573,216.4,216.37,7.46]
[1758655736472,7.21,216.41,216.37,7.46]
[1758655737875,114.88,216.43,216.35,1.66002779]
[1758655738077,8.87002779,216.42,216.3,7.46]
[1758655738280,179.5406,216.43,216.3,7.46]
[1758655738281,7.21,216.38,216.3,7.46]
[1758655738578,4.1585,216.34,216.3,7.46]
[1758655738775,7.21,216.33,216.27,5.81962779]
[1758655738977,64.6657,216.41,216.26,7.46]
[1758655738978,7.21,216.43,216.31,7.46]
[1758655739280,7.21,216.43,216.35,1.66002779]
[1758655739779,4.1567,216.42,216.35,1.66002779]
[1758655740379,4.1567,216.42,216.35,5.81782779]
[1758655740676,7.21,216.43,216.35,1.66002779]
[1758655741482,4.1567,216.42,216.36,4.1576]
[1758655741682,8.87002779,216.49,216.38,1.66002779]
[1758655741977,8.87002779,216.49,216.39,7.46]
[1758655742178,4.156,216.46,216.39,7.46]
[1758655742378,1.15561419,216.45,216.39,7.46]
[1758655742571,1.15561419,216.44,216.39,7.46]
[1758655742775,1.15561419,216.43,216.39,7.46]
[1758655742975,1.15561419,216.42,216.39,7.46]
[1758655743176,119.0153,216.49,216.42,7.46]
[1758655743478,1.15555824,216.48,216.42,7.46]
[1758655743680,1.15555824,216.47,216.41,1.66002779]
[1758655743981,4.1553,216.49,216.42,7.46]
[1758655743982,1.15555824,216.46,216.42,7.46]
[1758655744187,4.1553,216.49,216.42,11.6165]
[1758655744379,5.31090159,216.48,216.42,7.46]
[1758655744572,1.15530159,216.47,216.41,9.12002779]
[1758655744776,1.15530159,216.46,216.41,1.66002779]
[1758655744977,4.1556,216.48,216.42,7.46]
[1758655745176,1.15530159,216.47,216.41,13.27672779]
[1758655745475,4.1556,216.48,216.41,13.27672779]
[1758655745679,1.1553014,216.47,216.41,13.27672779]
[1758655745879,4.1556,216.48,216.41,13.27672779]
[1758655746081,1.1553015,216.47,216.41,13.27672779]
[1758655746280,4.1556,216.48,216.42,7.46]
[1758655746477,1.1553015,216.47,216.41,5.81672779]
[1758655746682,4.1556,216.48,216.42,7.46]
[1758655746885,1.1553015,216.47,216.41,5.81672779]
[1758655747085,4.1556,216.48,216.42,7.46]
[1758655747272,1.1553015,216.47,216.41,5.81672779]
[1758655747475,4.1556,216.48,216.42,7.46]
[1758655747677,1.1553015,216.47,216.41,5.81672779]
[1758655747882,4.1556,216.48,216.37,3.8507882]
[1758655747883,4.1551,216.5,216.44,1.66002779]
[1758655748083,1.15527601,216.49,216.45,7.46]
[1758655748285,349.46,216.54,216.45,7.46]
[1758655748483,1.15520451,216.53,216.45,7.46]
[1758655748784,1.15520451,216.52,216.48,7.46]
[1758655749090,1.15520451,216.51,216.48,7.46]
[1758655749386,356.67,216.54,216.48,7.46]
[1758655749582,7.21,216.52,216.48,7.46]
[1758655749782,11.3647,216.52,216.48,7.46]
[1758655750181,1.15510372,216.51,216.48,7.46]
[1758655750386,1.15510372,216.5,216.48,7.46]
[1758655750583,11.3647,216.52,216.48,7.46]
[1758655750787,1.15507236,216.51,216.48,7.46]
[1758655751085,1.15507236,216.5,216.48,7.46]
[1758655751287,349.46,216.54,216.48,7.46]
[1758655751587,8.36507236,216.53,216.48,7.46]
[1758655751789,1.15507236,216.52,216.48,7.46]
[1758655751990,1.15507236,216.51,216.48,7.46]
[1758655752190,7.21,216.53,216.48,7.46]
[1758655752387,1.15507236,216.52,216.48,7.46]
[1758655752588,1.15507236,216.51,216.47,1.66002779]
[1758655752791,4.1547,216.52,216.47,9.36002779]
[1758655752990,1.15507236,216.51,216.47,9.36002779]
[1758655753193,4.1547,216.52,216.48,7.7]
[1758655753391,1.15507236,216.51,216.48,7.7]
[1758655753592,11.6447,216.52,216.48,7.7]
[1758655753794,1.15510372,216.51,216.48,7.7]
[1758655753993,11.6447,216.52,216.48,7.7]
[1758655754293,1.15510372,216.51,216.48,7.7]
[1758655754487,11.6447,216.52,216.48,7.7]
[1758655754683,1.15507236,216.51,216.48,7.7]
[1758655754889,11.6447,216.52,216.48,7.7]
[1758655755988,464.26,216.54,216.48,7.7]
[1758655756293,464.26,216.54,216.47,1.66002779]
[1758655756294,1.15507236,216.53,216.47,1.66002779]
[1758655756488,1.15507236,216.52,216.48,7.7]
[1758655756687,114.8,216.54,216.48,7.7]
[1758655756884,1.15507236,216.53,216.49,7.7]
[1758655757085,1.15507236,216.52,216.49,7.7]
[1758655757391,7.49,216.53,216.49,7.7]
[1758655757594,1.15507236,216.52,216.49,7.7]
[1758655757892,7.49,216.53,216.49,7.7]
[1758655758093,1.15507236,216.52,216.49,7.7]
[1758655758288,7.49,216.53,216.47,1.66002779]
[1758655758489,1.15507236,216.52,216.49,7.7]
[1758655758683,7.49,216.53,216.49,7.7]
[1758655758994,1.15507236,216.52,216.49,7.7]
[1758655759294,11.6446,216.53,216.49,7.7]
[1758655760888,4.1549,216.51,216.44,11.8561]
[1758655761089,4.1549,216.51,216.44,13.51612779]
[1758655762588,4.1549,216.51,216.44,11.8561]
[1758655763192,4.1549,216.51,216.45,4.1559]
[1758655763393,4.1546,216.53,216.46,7.38]
[1758655764698,4.1548,216.52,216.46,7.38]
[1758655765299,11.3043,216.55,216.47,7.38]
[1758655765494,4.1543,216.55,216.47,7.38]
[1758655766792,4.1543,216.55,216.49,4.1551]
[1758655767693,4.1543,216.55,216.49,7.38]
[1758655769299,4.1543,216.55,216.49,11.5351]
[1758655771300,4.1543,216.55,216.5,7.38]
[1758655771499,4.1543,216.55,216.49,11.5351]
[1758655771801,126.0437,216.57,216.5,4.1549]
[1758655772393,4.1534,216.59,216.49,7.38]
[1758655772600,118.8734,216.59,216.49,7.38]
[1758655773103,5.30856334,216.58,216.52,4.1546]
[1758655773405,4.1537,216.58,216.52,4.1546]
[1758655773899,4.1537,216.58,216.49,7.38]
[1758655773900,7.15,216.58,216.5,4.155]
[1758655774099,7.15,216.58,216.49,7.38]
[1758655774598,11.3043,216.54,216.49,7.38]
[1758655774801,11.3043,216.54,216.48,11.5353]
[1758655776204,4.1543,216.54,216.48,11.5353]
[1758655776904,4.154,216.56,216.48,7.38]
[1758655777798,4.154,216.56,216.51,4.1549]
[1758655778000,11.304,216.56,216.52,7.38]
[1758655778903,7.15,216.55,216.52,7.38]
[1758655779305,4.1536,216.58,216.51,11.5349]
[1758655779500,1.15486378,216.57,216.51,11.5349]
[1758655779699,4.1536,216.58,216.51,11.5349]
[1758655779899,1.15486378,216.57,216.51,11.5349]
[1758655780104,4.1536,216.58,216.51,11.5349]
[1758655780305,4.1536,216.58,216.52,4.1546]
[1758655781807,4.1536,216.58,216.53,4.1543]
[1758655782200,11.3036,216.58,216.54,7.38]
[1758655783608,121.83,216.59,216.54,7.38]
[1758655783904,114.68,216.59,216.55,7.38]
[1758655784206,7.15,216.48,216.4,11.2307882]
[1758655784411,121.95,216.48,216.4,7.38]
[1758655784704,7.15,216.48,216.39,11.2307882]
[1758655784910,114.82,216.51,216.4,11.2307882]
[1758655785105,1.15514006,216.5,216.4,7.38]
[1758655785412,1.15514006,216.5,216.42,11.5365]
[1758655785413,4.1552,216.5,216.42,11.5365]
[1758655786208,22.82,216.52,216.41,68.5113882]
[1758655786410,4.1546,216.53,216.43,7.38]
[1758655786712,1.1550577,216.52,216.43,7.38]
[1758655786904,4.1546,216.53,216.43,7.38]
[1758655787104,4.1546,216.53,216.43,11.2307882]
[1758655787307,1.15504043,216.52,216.46,4.1557]
[1758655787606,4.1546,216.53,216.47,7.38]
[1758655787807,1.15504043,216.52,216.44,7.38]
[1758655788009,4.1546,216.53,216.44,7.38]
[1758655788208,1.15504043,216.52,216.45,7.38]
[1758655788506,4.1546,216.53,216.45,7.38]
[1758655788710,1.15504043,216.52,216.45,7.38]
[1758655788912,7.15,216.45,216.4,3.64462032]
[1758655789113,71.7973,216.46,216.37,7.38]
[1758655790804,4.1567,216.42,216.37,7.38]
[1758655791008,11.3067,216.42,216.37,7.38]
[1758655791712,4.1567,216.42,216.37,7.38]
[1758655791913,7.15,216.41,216.37,7.38]
[1758655792312,4.157,216.4,216.33,7.38]
[1758655793616,51.58,216.41,216.29,16.96398925]
[1758655793803,7.26,216.4,216.29,11.819]
[1758655794415,71.9255,216.4,216.29,7.66]
[1758655795204,64.6712,216.38,216.29,7.66]
[1758655795410,7.26,216.37,216.26,11.8195]
[1758655795605,21.0115075,216.37,216.26,11.8195]
[1758655795816,4.1585,216.33,216.26,7.66]
[1758655800317,7.26,216.35,216.26,11.8195]
[1758655800519,4.1579,216.36,216.26,7.66]
[1758655800815,2.5895132,216.42,216.28,7.66]
[1758655801115,7.26,216.42,216.3,7.66]
[1758655801614,4.157,216.4,216.3,7.66]